{"text_format":"1","workbook":"xlsx","n_sheets":6,"sheets":["Formula ","Custom","Shortcut","Format Cell","Equation Button","VBA"],"not_rendered":{"charts":0,"images":0,"macros":1,"external_links":0,"defined_names":0,"comments":0,"pivot_tables":0},"unopened":[],"bounds":{"document_bytes":16777216,"sheet_cells":100000,"rows_first":2000,"rows_last":500,"rows_between":2000,"halvings":0,"cell_chars":16384,"cell_head_chars":4096},"cells_cut":0,"cells_raw":0,"read":"whole","date_system":"1900"}

{"sheet":"Formula ","index":0,"n_rows":7,"n_cols":6,"rows_kept":7,"cut":false,"hidden":false,"merged":[[1,1,1,5]]}
[]
[null,"Display Power In Excel"]
[]
[null,"Base Number","Power","Number Raised to Power ","Formula","Result"]
[null,2,1,{"$f":"B5&CHAR(185)","v":"2¹"},{"$f":"_xlfn.FORMULATEXT(D5)","v":"=B5&CHAR(185)"},{"$f":"B5^C5","v":2}]
[null,4,2,{"$f":"B6&CHAR(178)","v":"4²"},{"$f":"_xlfn.FORMULATEXT(D6)","v":"=B6&CHAR(178)"},{"$f":"B6^C6","v":16}]
[null,8,3,{"$f":"B7&CHAR(179)","v":"8³"},"=B7&CHAR(179)",512]

{"sheet":"Custom","index":1,"n_rows":7,"n_cols":5,"rows_kept":7,"cut":false,"hidden":false,"merged":[[1,1,1,4]]}
[]
[null,"Display Power In Excel"]
[]
[null,"Base Number","Power","Number Raised to Power ","Result"]
[null,2,1,2,{"$f":"B5^C5","v":2}]
[null,4,2,4,{"$f":"B6^C6","v":16}]
[null,8,3,8,512]

{"sheet":"Shortcut","index":2,"n_rows":7,"n_cols":6,"rows_kept":7,"cut":false,"hidden":false,"merged":[[1,1,1,5]]}
[]
[null,"Display Power In Excel"]
[]
[null,"Base Number","Power","Shortcut","Number Raised to Power ","Result"]
[null,2,1,"Alt+0185",2,{"$f":"B5^C5","v":2}]
[null,4,2,"Alt+0178",4,{"$f":"B6^C6","v":16}]
[null,8,3,"Alt+0179",8,512]

{"sheet":"Format Cell","index":3,"n_rows":7,"n_cols":5,"rows_kept":7,"cut":false,"hidden":false,"merged":[[1,1,1,4]]}
[]
[null,"Display Power In Excel"]
[]
[null,"Base Number","Power","Number Raised to Power ","Result"]
[null,2,1,2,{"$f":"B5^C5","v":2}]
[null,4,2,4,{"$f":"B6^C6","v":16}]
[null,8,3,8,512]

{"sheet":"Equation Button","index":4,"n_rows":7,"n_cols":5,"rows_kept":7,"cut":false,"hidden":false,"merged":[[1,1,1,4]]}
[]
[null,"Display Power In Excel"]
[]
[null,"Base Number","Power","Number Raised to Power ","Result"]
[null,2,1,null,{"$f":"B5^C5","v":2}]
[null,4,2,null,{"$f":"B6^C6","v":16}]
[null,8,3,null,512]

{"sheet":"VBA","index":5,"n_rows":7,"n_cols":5,"rows_kept":7,"cut":false,"hidden":false,"merged":[[1,1,1,4]]}
[]
[null,"Display Power In Excel"]
[]
[null,"Base Number","Power","Number Raised to Power ","Result"]
[null,2,3,{"$f":"B5","v":2},{"$f":"B5^C5","v":8}]
[null,4,3,4,{"$f":"B6^C6","v":64}]
[null,8,3,8,512]